bitfinex/quotes_BTCUSD_20250904
["timestamp","ask_amount","ask_price","bid_price","bid_amount"]
[1756975678840,0.97181713,110880.0,110870.0,0.42762743]
[1756975679445,0.97181713,110880.0,110870.0,0.42439743]
[1756975679652,0.79347195,110880.0,110870.0,0.42439743]
[1756975679854,0.97384713,110880.0,110870.0,0.42439743]
[1756975681181,0.80273554,110880.0,110870.0,0.42439743]
[1756975681412,0.95273554,110880.0,110870.0,0.42439743]
[1756975682040,0.79347195,110880.0,110870.0,0.42439743]
[1756975683290,0.37114339,110880.0,110870.0,0.42439743]
[1756975683502,0.79347195,110880.0,110870.0,0.42439743]
[1756975684354,0.79663195,110880.0,110870.0,0.42439743]
[1756975684569,0.80575347,110880.0,110870.0,0.42439743]
[1756975684980,0.95575347,110880.0,110870.0,0.42439743]
[1756975686102,1.13612865,110880.0,110870.0,0.27230743]
[1756975686303,1.55845721,110880.0,110870.0,0.09191599]
[1756975686517,1.55845721,110880.0,110870.0,0.24191599]
[1756975686729,1.55845721,110880.0,110870.0,0.42230743]
[1756975688795,1.55845721,110880.0,110870.0,0.24191599]
[1756975689228,1.55845721,110880.0,110870.0,0.42230743]
[1756975695641,1.27687134,110880.0,110870.0,0.42230743]
[1756975695864,0.02911339,110880.0,110870.0,0.42724743]
[1756975696071,0.002,110880.0,110870.0,0.42724743]
[1756975703730,0.002,110880.0,110870.0,0.42426743]
[1756975704439,0.00401,110880.0,110870.0,0.42426743]
[1756975704573,0.00401,110880.0,110870.0,0.27426743]
[1756975704798,0.00401,110880.0,110870.0,0.42426743]
[1756975708863,0.00301,110880.0,110870.0,0.42426743]
[1756975709624,0.00401,110880.0,110870.0,0.42426743]
[1756975709952,0.00201,110880.0,110870.0,0.42426743]
[1756975710350,0.00201,110880.0,110870.0,0.42826743]
[1756975711229,0.00201,110880.0,110870.0,0.43126743]
[1756975711415,0.00201,110880.0,110870.0,0.43122743]
[1756975712266,0.00201,110880.0,110870.0,0.28126743]
[1756975712425,0.00508,110880.0,110870.0,0.43122743]
[1756975712838,0.74852643,110880.0,110870.0,0.09891599]
[1756975713063,0.74852643,110880.0,110870.0,0.42926743]
[1756975713211,0.77563981,110880.0,110870.0,0.42926743]
[1756975713424,1.11563981,110880.0,110870.0,0.09891599]
[1756975713625,1.11563981,110880.0,110870.0,0.09491599]
[1756975713831,1.11563981,110880.0,110870.0,0.006]
[1756975714047,1.67871106,110880.0,110870.0,0.003]
[1756975714252,0.52039144,110870.0,110860.0,0.1804071]
[1756975714459,1.23649269,110870.0,110860.0,0.27232309]
[1756975714692,1.23850269,110870.0,110860.0,0.27232309]
[1756975714872,1.26561983,110870.0,110860.0,0.27232309]
[1756975715704,1.26561983,110870.0,110860.0,0.09191599]
[1756975716117,1.26561983,110870.0,110860.0,0.09491599]
[1756975716804,1.26561983,110870.0,110860.0,0.09891599]
[1756975717157,1.26561983,110870.0,110860.0,0.007]
[1756975717363,1.35753582,110870.0,110860.0,0.007]
[1756975717565,1.26561983,110870.0,110860.0,0.007]
[1756975718302,0.18042071,110860.0,110840.0,0.33986921]
[1756975718527,0.56815125,110850.0,110840.0,0.4317852]
[1756975718937,0.59527162,110850.0,110840.0,0.4317852]
[1756975720466,0.59527162,110850.0,110840.0,0.09236292]
[1756975720467,1.12481596,110850.0,110840.0,0.09236292]
[1756975720681,1.12481596,110850.0,110840.0,0.09736292]
[1756975720682,1.27509596,110850.0,110840.0,0.09736292]
[1756975721535,1.27509596,110850.0,110840.0,0.10136292]
[1756975721755,1.27509596,110850.0,110840.0,0.09636292]
[1756975721959,1.27529596,110850.0,110840.0,0.27280319]
[1756975722131,1.27529596,110850.0,110840.0,0.27480319]
[1756975722762,1.27529596,110850.0,110840.0,0.09436292]
[1756975723401,1.27529596,110850.0,110840.0,0.09736292]
[1756975723582,1.27529596,110850.0,110840.0,0.09436292]
[1756975724000,1.27529596,110850.0,110840.0,0.09736292]
[1756975725226,1.12481596,110850.0,110840.0,0.09736292]
[1756975725404,1.27525596,110850.0,110840.0,0.09736292]
[1756975726675,1.27525596,110850.0,110840.0,0.27780319]
[1756975730158,1.27525596,110850.0,110840.0,0.27995319]
[1756975730825,1.27525596,110850.0,110840.0,0.27780319]
[1756975731033,1.27525596,110850.0,110840.0,0.09736292]
[1756975731444,1.27525596,110850.0,110840.0,0.00544693]
[1756975731657,1.27521596,110850.0,110840.0,0.00544693]
[1756975732086,1.27521596,110850.0,110840.0,0.00344693]
[1756975732308,1.27521596,110850.0,110840.0,0.1838872]
[1756975732526,1.12481596,110850.0,110840.0,0.1848872]
[1756975732737,1.12481596,110850.0,110840.0,0.1840372]
[1756975732738,0.94132197,110850.0,110840.0,0.1840372]
[1756975732940,0.52865072,110850.0,110840.0,0.1840372]
[1756975733143,1.09172197,110850.0,110840.0,0.1860372]
[1756975733769,0.37825072,110850.0,110840.0,0.27695319]
[1756975734205,0.37624072,110850.0,110840.0,0.28112319]
[1756975736896,0.36712037,110850.0,110840.0,0.28112319]
[1756975741844,0.36920037,110850.0,110840.0,0.27580319]
[1756975742054,0.93551162,110850.0,110840.0,0.42608319]
[1756975742639,0.93551162,110850.0,110840.0,0.27580319]
[1756975742847,1.11593561,110850.0,110840.0,0.42608319]
[1756975743660,1.11593561,110850.0,110840.0,0.27580319]
[1756975746460,1.11593561,110850.0,110840.0,0.00344693]
[1756975746672,1.26617561,110850.0,110840.0,0.00344693]
[1756975747016,1.26617561,110850.0,110840.0,0.1838872]
[1756975748551,1.26617561,110850.0,110840.0,0.00344693]
[1756975749932,1.11593561,110850.0,110840.0,0.00344693]
[1756975750190,1.26617561,110850.0,110840.0,0.1838872]
[1756975750405,0.93551162,110850.0,110840.0,0.1838872]
[1756975750618,1.08251162,110850.0,110840.0,0.1860172]
[1756975750983,0.93227162,110850.0,110840.0,0.1860172]
[1756975751208,1.08251162,110850.0,110840.0,0.1860172]
[1756975751414,0.93227162,110850.0,110840.0,0.1860172]
[1756975751757,1.08251162,110850.0,110840.0,0.1860172]
[1756975752418,0.93227162,110850.0,110840.0,0.1860172]
[1756975752613,0.36712037,110850.0,110840.0,0.28113319]
[1756975753499,0.36712037,110850.0,110840.0,0.27793319]
[1756975753713,0.93547162,110850.0,110840.0,0.42600319]
[1756975754040,0.93547162,110850.0,110840.0,0.42813319]
[1756975755272,0.37240037,110850.0,110840.0,0.42813319]
[1756975756357,0.93547162,110850.0,110840.0,0.42813319]
[1756975756780,1.11589561,110850.0,110840.0,0.27793319]
[1756975756981,1.11589561,110850.0,110840.0,0.42600319]
[1756975757481,0.97534633,110850.0,110840.0,0.42600319]
[1756975757928,1.12554633,110850.0,110840.0,0.27580319]
[1756975758150,1.12554633,110850.0,110840.0,0.42600319]
[1756975758526,1.12554633,110850.0,110840.0,0.27580319]
[1756975758736,1.12554633,110850.0,110840.0,0.42596319]
[1756975758945,1.12554633,110850.0,110840.0,0.3340472]
[1756975760130,1.12554633,110850.0,110840.0,0.1838872]
[1756975762469,1.12554633,110850.0,110840.0,0.00344693]
[1756975768610,1.12554633,110850.0,110840.0,0.1838872]
[1756975769041,0.97534633,110850.0,110840.0,0.1838872]
[1756975769250,1.12550633,110850.0,110840.0,0.1838872]
[1756975769672,0.79492234,110850.0,110840.0,0.1860172]
[1756975769876,0.94184234,110850.0,110840.0,0.1860172]
[1756975770088,0.78964234,110850.0,110840.0,0.28113319]
[1756975770340,0.93980234,110850.0,110840.0,0.28113319]
[1756975770553,0.78964234,110850.0,110840.0,0.28113319]
[1756975776300,0.78964234,110850.0,110840.0,0.27793319]
[1756975778861,0.79168234,110850.0,110840.0,0.27793319]
[1756975779406,1.12529633,110850.0,110840.0,0.27793319]
[1756975779610,1.12529633,110850.0,110840.0,0.42801319]
[1756975779823,0.94487234,110850.0,110840.0,0.42801319]
[1756975782289,1.12529633,110850.0,110840.0,0.42801319]
[1756975783265,0.97517633,110850.0,110840.0,0.42801319]
[1756975783469,1.12525633,110850.0,110840.0,0.42801319]
[1756975785466,0.97517633,110850.0,110840.0,0.42801319]
[1756975786275,0.97517633,110850.0,110840.0,0.42588319]
[1756975787458,1.12525633,110850.0,110840.0,0.42588319]
[1756975787877,0.70273436,110850.0,110840.0,0.42588319]
[1756975788326,1.12525633,110850.0,110840.0,0.42588319]
[1756975789294,0.70273436,110850.0,110840.0,0.42785319]
[1756975789484,1.12525633,110850.0,110840.0,0.42785319]
[1756975789688,0.70273436,110850.0,110840.0,0.42785319]
[1756975789888,1.12525633,110850.0,110840.0,0.42588319]
[1756975797606,1.12525633,110850.0,110840.0,0.27580319]
[1756975797807,1.12525633,110850.0,110840.0,0.42588319]
[1756975800449,1.12218633,110850.0,110840.0,0.42785319]
[1756975801346,1.12218633,110850.0,110840.0,0.27777319]
[1756975801552,1.12525633,110850.0,110840.0,0.42588319]
[1756975801966,1.12525633,110850.0,110840.0,0.09536292]
[1756975803677,1.12525633,110850.0,110840.0,0.00344693]
[1756975804549,1.5477783,110850.0,110840.0,0.00344693]
[1756975808190,1.12525633,110850.0,110840.0,0.00344693]
[1756975810642,1.5477783,110850.0,110840.0,0.00344693]
[1756975812946,1.3976983,110850.0,110840.0,0.00344693]
[1756975813196,1.5477783,110850.0,110840.0,0.00344693]
[1756975817580,1.26624642,110850.0,110840.0,0.00344693]
[1756975819351,1.28574182,110850.0,110840.0,0.00344693]
[1756975821353,1.26624642,110850.0,110840.0,0.00344693]
[1756975821558,1.28574078,110850.0,110840.0,0.00344693]
[1756975822704,1.28574041,110850.0,110840.0,0.00344693]
[1756975823294,1.28574026,110850.0,110840.0,0.00344693]
[1756975826532,0.7224282,110850.0,110840.0,0.00344693]
[1756975826731,1.28594026,110850.0,110840.0,0.00344693]
[1756975827138,1.28598026,110850.0,110840.0,0.00344693]
[1756975830683,0.7224282,110850.0,110840.0,0.00344693]
[1756975830926,1.28594026,110850.0,110840.0,0.00344693]
[1756975832302,0.7224282,110850.0,110840.0,0.00344693]
[1756975832653,1.28594026,110850.0,110840.0,0.00344693]
[1756975834032,1.13566026,110850.0,110840.0,0.00344693]
[1756975834233,1.28590026,110850.0,110840.0,0.00344693]
[1756975838752,1.37781625,110850.0,110840.0,0.00344693]
[1756975840096,1.28590026,110850.0,110840.0,0.00344693]
[1756975845362,1.29436719,110850.0,110840.0,0.00344693]
[1756975847391,1.29432719,110850.0,110840.0,0.00344693]
[1756975848797,1.36368719,110850.0,110840.0,0.00344693]
[1756975850654,1.36364719,110850.0,110840.0,0.00344693]
[1756975851052,1.45556318,110850.0,110840.0,0.00344693]
[1756975851850,1.36364509,110850.0,110840.0,0.00344693]
[1756975852472,1.21348509,110850.0,110840.0,0.00344693]
[1756975852672,1.36364509,110850.0,110840.0,0.00553693]
[1756975852881,1.21041509,110850.0,110840.0,0.00553693]
[1756975853094,1.35857481,110850.0,110840.0,0.00850693]
[1756975853304,1.35857481,110850.0,110840.0,0.00553693]
[1756975853525,1.36073481,110850.0,110840.0,0.00553693]
[1756975853720,1.36385481,110850.0,110840.0,0.00553693]
[1756975855084,1.36385481,110850.0,110840.0,0.00344693]
[1756975856914,1.21365481,110850.0,110840.0,0.00344693]
[1756975857115,1.36381481,110850.0,110840.0,0.00344693]
[1756975857541,0.80030275,110850.0,110840.0,0.00344693]
[1756975857820,1.36381481,110850.0,110840.0,0.00344693]
[1756975858197,1.36381486,110850.0,110840.0,0.00344693]
[1756975861860,1.45573085,110850.0,110840.0,0.00344693]
[1756975862872,1.36381486,110850.0,110840.0,0.00344693]
[1756975873342,0.8003028,110850.0,110840.0,0.00344693]
[1756975873546,1.36381486,110850.0,110840.0,0.00344693]
[1756975874321,1.38818235,110850.0,110840.0,0.00344693]
[1756975879597,1.66999455,110850.0,110840.0,0.00344693]
[1756975881404,1.76191054,110850.0,110840.0,0.00344693]
[1756975881992,1.66999455,110850.0,110840.0,0.00344693]
[1756975886978,1.66999852,110850.0,110840.0,0.00344693]
[1756975894727,2.09266065,110850.0,110840.0,0.00344693]
[1756975894930,1.66999852,110850.0,110840.0,0.00344693]
[1756975895191,1.66152995,110850.0,110840.0,0.00344693]
[1756975895407,1.66999962,110850.0,110840.0,0.00344693]
[1756975895627,2.18457774,110850.0,110840.0,0.00344693]
[1756975896067,2.19093018,110850.0,110840.0,0.00344693]
[1756975897908,1.67631206,110850.0,110840.0,0.00344693]
[1756975898248,2.09897419,110850.0,110840.0,0.00344693]
[1756975898438,1.67631206,110850.0,110840.0,0.00344693]
[1756975898758,1.67630995,110850.0,110840.0,0.00344693]
[1756975901155,1.52618995,110850.0,110840.0,0.00344693]
[1756975901381,1.66995751,110850.0,110840.0,0.00344693]
[1756975901738,1.51671751,110850.0,110840.0,0.00344693]
[1756975901944,0.81935325,110850.0,110840.0,0.00553693]
[1756975902147,1.51455751,110850.0,110840.0,0.00553693]
[1756975902355,0.66923325,110850.0,110840.0,0.00868693]
[1756975902574,0.79498576,110850.0,110840.0,0.00868693]
[1756975902780,1.64031002,110850.0,110840.0,0.00868693]
[1756975904324,0.79498576,110850.0,110840.0,0.00868693]
[1756975904582,1.64031002,110850.0,110840.0,0.00868693]
[1756975907733,1.64031002,110850.0,110840.0,0.00553693]
[1756975907995,1.64238002,110850.0,110840.0,0.00553693]
[1756975910222,0.79705576,110850.0,110840.0,0.00553693]
[1756975910459,1.64238002,110850.0,110840.0,0.00553693]
[1756975911414,1.49226002,110850.0,110840.0,0.00553693]
[1756975911623,1.64238002,110850.0,110840.0,0.00553693]
[1756975913312,1.64556002,110850.0,110840.0,0.00553693]
[1756975913544,1.64556002,110850.0,110840.0,0.00344693]
[1756975913754,1.66992751,110850.0,110840.0,0.00344693]
[1756975915738,2.20778901,110850.0,110840.0,0.00344693]
[1756975915949,2.24029312,110850.0,110840.0,0.00344693]
[1756975919107,2.24029029,110850.0,110840.0,0.00344693]
[1756975919309,2.1483743,110850.0,110840.0,0.00344693]
[1756975919843,2.14837301,110850.0,110840.0,0.00344693]
[1756975920302,2.14837009,110850.0,110840.0,0.00344693]
[1756975920735,2.24028608,110850.0,110840.0,0.00344693]
[1756975920938,2.09016608,110850.0,110840.0,0.00344693]
[1756975921146,2.24028608,110850.0,110840.0,0.00344693]
[1756975921616,2.10808539,110850.0,110840.0,0.00344693]
[1756975922041,2.25820539,110850.0,110840.0,0.00344693]
[1756975926508,0.97229969,110850.0,110840.0,0.00344693]
[1756975926712,2.09016608,110850.0,110840.0,0.00344693]
[1756975926957,1.66432395,110850.0,110840.0,0.00344693]
[1756975927161,1.77994984,110850.0,110840.0,0.00553693]
[1756975927297,1.77994984,110850.0,110840.0,0.00868693]
[1756975927504,1.77994984,110850.0,110840.0,0.00553693]
[1756975927723,1.78201984,110850.0,110840.0,0.00553693]
[1756975928431,1.7852129,110850.0,110840.0,0.00553693]
[1756975928635,1.6350129,110850.0,110840.0,0.00553693]
[1756975928806,1.7852129,110850.0,110840.0,0.00553693]
[1756975928994,1.78520917,110850.0,110840.0,0.00553693]
[1756975929193,1.63500917,110850.0,110840.0,0.00553693]
[1756975929378,1.78520917,110850.0,110840.0,0.00553693]
[1756975929911,1.78520917,110850.0,110840.0,0.00344693]
[1756975930532,1.83898407,110850.0,110840.0,0.00344693]
[1756975930937,1.78520917,110850.0,110840.0,0.00344693]
[1756975932409,2.2078713,110850.0,110840.0,0.00344693]
[1756975932588,2.0576713,110850.0,110840.0,0.00344693]
[1756975932789,1.78520917,110850.0,110840.0,0.00547693]
[1756975933013,2.2078713,110850.0,110840.0,0.00344693]
[1756975933548,1.78520917,110850.0,110840.0,0.00344693]
[1756975935165,2.2078713,110850.0,110840.0,0.00344693]
[1756975937057,2.29978729,110850.0,110840.0,0.00344693]
[1756975937619,2.33229069,110850.0,110840.0,0.00344693]
[1756975939549,2.19180344,110850.0,110840.0,0.00344693]
[1756975941044,2.23799497,110850.0,110840.0,0.00344693]
[1756975941483,2.68669497,110850.0,110840.0,0.00344693]
[1756975941692,2.68669497,110850.0,110840.0,0.00144693]
[1756975941932,2.68669497,110850.0,110840.0,0.00044693]
[1756975943025,2.68769497,110850.0,110840.0,0.00044693]
[1756975943685,2.68769447,110850.0,110840.0,0.00044693]
[1756975944118,2.68869447,110850.0,110840.0,0.00044693]
[1756975944763,2.68769447,110850.0,110840.0,0.00044693]
[1756975944968,2.65519036,110850.0,110840.0,0.00044693]
[1756975945404,2.65619036,110850.0,110840.0,0.00044693]
[1756975945821,2.63926355,110850.0,110840.0,0.00044693]
[1756975946029,2.65619235,110850.0,110840.0,0.00044693]
[1756975947554,2.20749235,110850.0,110840.0,0.00044693]
[1756975947778,2.22683427,110850.0,110840.0,0.00044693]
[1756975948408,2.22687427,110850.0,110840.0,1e-08]
[1756975948811,2.07663427,110850.0,110840.0,1e-08]
[1756975949220,2.22687427,110850.0,110840.0,1e-08]
[1756975949652,2.22686983,110850.0,110840.0,1e-08]
[1756975951144,2.14756865,110850.0,110840.0,1e-08]
[1756975951351,2.29776865,110850.0,110840.0,1e-08]
[1756975951935,2.51464865,110850.0,110840.0,1e-08]
[1756975952911,2.51464671,110850.0,110840.0,1e-08]
[1756975954148,2.36444671,110850.0,110840.0,1e-08]
[1756975954450,2.51464671,110850.0,110840.0,1e-08]
[1756975954654,2.51463273,110850.0,110840.0,1e-08]
[1756975954849,2.47348197,110850.0,110840.0,1e-08]
[1756975955052,2.46498371,110850.0,110840.0,1e-08]
[1756975955256,2.47344112,110850.0,110840.0,1e-08]
[1756975956928,2.32328112,110850.0,110840.0,1e-08]
[1756975957135,2.47344112,110850.0,110840.0,1e-08]
[1756975960387,2.32328112,110850.0,110840.0,1e-08]
[1756975960597,2.47344112,110850.0,110840.0,1e-08]
[1756975961374,2.15724631,110850.0,110840.0,0.00197001]
[1756975961591,2.33785125,110850.0,110840.0,0.00517001]
[1756975962169,2.33982125,110850.0,110840.0,0.00197001]
[1756975962605,2.34300125,110850.0,110840.0,0.00197001]
[1756975962809,2.35368886,110850.0,110840.0,0.00197001]
[1756975963776,2.20030886,110850.0,110840.0,0.00197001]
[1756975963981,2.34853965,110850.0,110840.0,0.00197001]
[1756975967179,2.34853965,110850.0,110840.0,0.00517001]
[1756975967374,2.33150335,110850.0,110840.0,0.00517001]
[1756975967579,2.33784969,110850.0,110840.0,0.00517001]
[1756975971645,2.3378523,110850.0,110840.0,0.00517001]
[1756975973302,2.3398223,110850.0,110840.0,0.00197001]
[1756975974260,2.3430023,110850.0,110840.0,0.00197001]
[1756975975244,2.29424613,110850.0,110840.0,0.00197001]
[1756975977148,2.29425183,110850.0,110840.0,0.00197001]
[1756975977993,2.3132163,110850.0,110840.0,0.00197001]
[1756975979993,2.3132163,110850.0,110840.0,1e-08]
[1756975980519,2.36197247,110850.0,110840.0,1e-08]
[1756975981133,2.36197094,110850.0,110840.0,1e-08]
[1756975982168,2.36198207,110850.0,110840.0,1e-08]
[1756975985643,2.14510207,110850.0,110840.0,1e-08]
[1756975986707,2.14510306,110850.0,110840.0,1e-08]
[1756975987181,2.14510305,110850.0,110840.0,1e-08]
[1756975988199,2.14510449,110850.0,110840.0,1e-08]
[1756975988345,2.11263347,110850.0,110840.0,1e-08]
[1756975992475,2.11263536,110850.0,110840.0,1e-08]
[1756975995673,2.11263487,110850.0,110840.0,1e-08]
[1756975996289,2.11259487,110850.0,110840.0,1e-08]
[1756975998592,2.11255487,110850.0,110840.0,1e-08]
[1756975999196,2.11255465,110850.0,110840.0,1e-08]
[1756975999562,3.52248503,110850.0,110840.0,1e-08]
[1756975999988,2.25377027,110850.0,110840.0,1e-08]
[1756976001161,2.22837434,110850.0,110840.0,1e-08]
[1756976001363,2.10363993,110850.0,110840.0,1e-08]
[1756976001580,2.25379993,110850.0,110840.0,1e-08]
[1756976002447,2.1357331,110850.0,110840.0,1e-08]
[1756976002653,2.13935081,110850.0,110840.0,1e-08]
[1756976003323,2.13934422,110850.0,110840.0,1e-08]
[1756976003549,1.98918422,110850.0,110840.0,1e-08]
[1756976003756,2.13934422,110850.0,110840.0,1e-08]
[1756976004008,1.98918422,110850.0,110840.0,1e-08]
[1756976004209,2.13930422,110850.0,110840.0,1e-08]
[1756976006470,1.98918422,110850.0,110840.0,1e-08]
[1756976006714,2.13930422,110850.0,110840.0,1e-08]
[1756976008163,3.40801761,110850.0,110840.0,1e-08]
[1756976009043,3.25789761,110850.0,110840.0,1e-08]
[1756976009182,3.40801761,110850.0,110840.0,1e-08]
[1756976010279,3.25789761,110850.0,110840.0,1e-08]
[1756976010452,3.40801761,110850.0,110840.0,1e-08]
[1756976011518,3.25789761,110850.0,110840.0,1e-08]
[1756976011729,3.52010719,110850.0,110840.0,1e-08]
[1756976012561,3.52010919,110850.0,110840.0,1e-08]
[1756976012772,3.46935302,110850.0,110840.0,1e-08]
[1756976013022,3.52135302,110850.0,110840.0,1e-08]
[1756976013218,0.52044027,110840.0,110830.0,1e-08]
[1756976013469,3.49177409,110840.0,110830.0,1e-08]
[1756976013791,3.94575409,110840.0,110830.0,1e-08]
[1756976014012,3.94937191,110840.0,110830.0,1e-08]
[1756976017500,3.98978393,110840.0,110830.0,1e-08]
[1756976018573,3.54108393,110840.0,110830.0,1e-08]
[1756976018795,3.54308393,110840.0,110830.0,1e-08]
[1756976019483,3.54407951,110840.0,110830.0,1e-08]
[1756976019936,3.50266749,110840.0,110830.0,1e-08]
[1756976020165,3.50266742,110840.0,110830.0,1e-08]
[1756976020400,3.49732641,110840.0,110830.0,1e-08]
[1756976020630,3.50366091,110840.0,110830.0,1e-08]
[1756976021477,3.35354091,110840.0,110830.0,1e-08]
[1756976021749,3.50370091,110840.0,110830.0,1e-08]
[1756976021894,3.50368333,110840.0,110830.0,1e-08]
[1756976022256,3.35352333,110840.0,110830.0,1e-08]
[1756976022458,3.50368333,110840.0,110830.0,1e-08]
[1756976022842,3.41176734,110840.0,110830.0,1e-08]
[1756976024004,3.41176422,110840.0,110830.0,1e-08]
[1756976030951,3.39485872,110840.0,110830.0,1e-08]
[1756976031157,3.41175927,110840.0,110830.0,1e-08]
[1756976033158,3.41175927,110840.0,110830.0,0.00195001]
[1756976033366,3.50367526,110840.0,110830.0,0.00195001]
[1756976033767,3.50367526,110840.0,110830.0,1e-08]
[1756976037008,3.40861073,110840.0,110830.0,0.00195001]
[1756976037468,3.41155223,110840.0,110830.0,0.00195001]
[1756976038319,3.41155223,110840.0,110830.0,1e-08]
[1756976038743,3.4115504,110840.0,110830.0,1e-08]
[1756976039461,3.50023748,110840.0,110830.0,1e-08]
[1756976039643,3.4115504,110840.0,110830.0,1e-08]
[1756976040227,3.41155206,110840.0,110830.0,1e-08]
[1756976041186,3.26139206,110840.0,110830.0,1e-08]
[1756976041435,3.41155206,110840.0,110830.0,1e-08]
[1756976041648,3.41155314,110840.0,110830.0,1e-08]
[1756976041867,3.49712849,110840.0,110830.0,1e-08]
[1756976042054,3.50346907,110840.0,110830.0,1e-08]
[1756976042293,3.41155308,110840.0,110830.0,1e-08]
[1756976043377,3.4115552,110840.0,110830.0,1e-08]
[1756976047871,3.5066652,110840.0,110830.0,1e-08]
[1756976048029,3.4115552,110840.0,110830.0,1e-08]
[1756976049096,3.41155711,110840.0,110830.0,1e-08]
[1756976049286,3.5034731,110840.0,110830.0,1e-08]
[1756976049925,3.41155711,110840.0,110830.0,1e-08]
[1756976051310,3.41156476,110840.0,110830.0,1e-08]
[1756976053453,3.40522206,110840.0,110830.0,1e-08]
[1756976053654,3.41156366,110840.0,110830.0,1e-08]
[1756976053970,3.41156343,110840.0,110830.0,1e-08]
[1756976054166,3.50347942,110840.0,110830.0,1e-08]
[1756976054976,3.41156343,110840.0,110830.0,1e-08]
[1756976057483,3.41156286,110840.0,110830.0,1e-08]
[1756976058811,3.41156283,110840.0,110830.0,1e-08]
[1756976061432,0.87413331,110840.0,110830.0,1e-08]
[1756976061642,2.00201285,110840.0,110830.0,1e-08]
[1756976061849,1.97030494,110840.0,110830.0,1e-08]
[1756976062045,1.99567042,110840.0,110830.0,1e-08]
[1756976062234,2.08758641,110840.0,110830.0,1e-08]
[1756976062430,2.06222093,110840.0,110830.0,1e-08]
[1756976063534,1.97030494,110840.0,110830.0,1e-08]
[1756976063733,1.82014494,110840.0,110830.0,0.00208001]
[1756976063963,1.96519494,110840.0,110830.0,0.00501001]
[1756976065874,1.99690415,110840.0,110830.0,0.00501001]
[1756976066489,1.99690415,110840.0,110830.0,0.00208001]
[1756976066677,1.99690365,110840.0,110830.0,0.00208001]
[1756976067593,2.00214365,110840.0,110830.0,0.00208001]
[1756976070200,2.00214152,110840.0,110830.0,0.00208001]
[1756976071871,2.00214152,110840.0,110830.0,1e-08]
[1756976072672,2.00214152,110840.0,110830.0,0.00208001]
[1756976074406,2.00214104,110840.0,110830.0,0.00208001]
[1756976076074,0.8711115,110840.0,110830.0,0.00208001]
[1756976076282,2.06874141,110840.0,110830.0,1e-08]
[1756976076604,2.09055025,110840.0,110830.0,1e-08]
[1756976078212,2.02394988,110840.0,110830.0,1e-08]
[1756976081083,2.02394961,110840.0,110830.0,1e-08]
[1756976081430,1.85202077,110840.0,110830.0,0.00198001]
[1756976081636,1.99690077,110840.0,110830.0,0.00496001]
[1756976081863,1.99886077,110840.0,110830.0,0.00198001]
[1756976082570,2.040102,110840.0,110830.0,0.00198001]
[1756976083185,2.13497799,110840.0,110830.0,0.00198001]
[1756976083523,1.98485799,110840.0,110830.0,0.00198001]
[1756976083728,2.13497799,110840.0,110830.0,0.00198001]
[1756976084713,2.043062,110840.0,110830.0,0.00198001]
[1756976084904,1.892942,110840.0,110830.0,0.00198001]
[1756976085071,1.889982,110840.0,110830.0,0.00198001]
[1756976085244,2.040102,110840.0,110830.0,0.00198001]
[1756976085463,1.889982,110840.0,110830.0,0.00198001]
[1756976085672,2.07060827,110840.0,110830.0,0.00496001]
[1756976086125,2.07061038,110840.0,110830.0,0.00496001]
[1756976086528,2.16252637,110840.0,110830.0,0.00496001]
[1756976086836,2.07257038,110840.0,110830.0,0.00198001]
[1756976087797,2.07553038,110840.0,110830.0,0.00198001]
[1756976089278,1.92541038,110840.0,110830.0,0.00198001]
[1756976089487,2.07553038,110840.0,110830.0,0.00198001]
[1756976100417,2.07553038,110840.0,110830.0,0.00496001]
[1756976100418,1.22339339,110840.0,110830.0,0.00496001]
[1756976100620,1.32478721,110840.0,110830.0,0.00496001]
[1756976100821,1.34913996,110840.0,110830.0,0.00496001]
[1756976101489,1.91307973,110840.0,110830.0,0.00496001]
[1756976101680,1.34913996,110840.0,110830.0,0.00496001]
[1756976102306,1.31667369,110840.0,110830.0,0.00496001]
[1756976102886,1.14330154,110840.0,110830.0,0.00496001]
[1756976103106,1.29342154,110840.0,110830.0,0.00496001]
[1756976103317,0.92906879,110840.0,110830.0,0.00496001]
[1756976103523,0.69667323,110840.0,110830.0,0.00496001]
[1756976103789,1.110493,110840.0,110830.0,0.00496001]
[1756976103969,1.260613,110840.0,110830.0,0.00496001]
[1756976104350,1.110493,110840.0,110830.0,0.00496001]
[1756976104560,0.69667323,110840.0,110830.0,0.00496001]
[1756976104767,1.260613,110840.0,110830.0,0.00496001]
[1756976105128,1.110493,110840.0,110830.0,0.00496001]
[1756976105502,1.260613,110840.0,110830.0,0.00496001]
[1756976106353,1.260573,110840.0,110830.0,0.00496001]
[1756976111305,1.24107786,110840.0,110830.0,0.00496001]
[1756976113824,0.67713809,110840.0,110830.0,0.00198001]
[1756976114024,1.24107786,110840.0,110830.0,0.00198001]
[1756976116482,0.67713809,110840.0,110830.0,0.00198001]
[1756976116707,1.24107786,110840.0,110830.0,0.00198001]
[1756976117044,0.67713809,110840.0,110830.0,0.00198001]
[1756976117283,1.24107786,110840.0,110830.0,0.00198001]
[1756976117510,0.52705809,110840.0,110830.0,0.00502001]
[1756976117731,0.67713809,110840.0,110830.0,0.18773226]
[1756976117964,1.24107786,110840.0,110830.0,0.18547656]
[1756976119353,1.24107786,110840.0,110830.0,0.27739255]
[1756976123029,0.67713809,110840.0,110830.0,0.27739255]
[1756976123232,1.24107786,110840.0,110830.0,0.27739255]
[1756976123639,1.52246747,110840.0,110830.0,0.27739255]
[1756976128081,0.67713809,110840.0,110830.0,0.27435255]
[1756976128304,1.52445747,110840.0,110830.0,0.093896]
[1756976129454,1.52751747,110840.0,110830.0,0.093896]
[1756976145770,1.52751747,110840.0,110830.0,0.091916]
[1756976147191,1.54700938,110840.0,110830.0,0.091916]
[1756976147590,1.39692938,110840.0,110830.0,0.091916]
[1756976147825,1.54696938,110840.0,110830.0,0.091916]
[1756976148412,1.39692938,110840.0,110830.0,0.091916]
[1756976148626,1.54696938,110840.0,110830.0,0.091916]
[1756976155398,1.39692938,110840.0,110830.0,0.091916]
[1756976155539,1.54696938,110840.0,110830.0,0.091916]
[1756976163139,1.39692938,110840.0,110830.0,0.094016]
[1756976163346,1.39187938,110840.0,110830.0,0.27979825]
[1756976163546,0.57932251,110840.0,110830.0,0.27754255]
[1756976163714,0.15665782,110840.0,110830.0,0.27754255]
[1756976163917,0.42928251,110840.0,110830.0,0.27754255]
[1756976164169,0.57932251,110840.0,110830.0,0.27754255]
[1756976164691,0.57732251,110840.0,110830.0,0.27754255]
[1756976165630,0.57632251,110840.0,110830.0,0.27854255]
[1756976165991,0.42628251,110840.0,110830.0,0.27854255]
[1756976166199,0.57632251,110840.0,110830.0,0.27854255]
[1756976167024,0.42628251,110840.0,110830.0,0.29948137]
[1756976170141,0.42829251,110840.0,110830.0,0.29641137]
[1756976170374,1.18463747,110840.0,110830.0,0.092916]
[1756976170583,1.18463747,110840.0,110830.0,0.27337255]